[Event "Bremer Silvester Open-B 2024"]
[Site "Bremen"]
[Date "2024.12.28"]
[Round "4.7"]
[White "Rauscher, Joachim"]
[Black "Dianov, Ilja"]
[Result "1-0"]
[ECO "B15"]
[WhiteElo "1797"]
[BlackElo "1861"]
[Annotator "NA RC"]
[PlyCount "101"]
[EventDate "2024.12.16"]
[EventType "swiss"]
[EventCountry "GER"]
[SourceTitle "playchess.com"]
[Source "ChessBase"]
[SourceQuality "1"]
[TimeControl "5400+30"]

1. e4 {[%emt 0:00:05]} c6 {[%emt 0:00:05]} 2. d4 {[%emt 0:00:06]} d5 {[%emt 0:00:05]} 3. Nc3 {[%emt 0:00:06]} dxe4 {[%emt 0:00:05]} 4. Nxe4 {[%emt 0:00:10]} Nf6 {[%emt 0:00:05]} 5. Nxf6+ {[%emt 0:00:41]} exf6 {[%emt 0:00:05]} 6. Nf3 {[%emt 0:00:53]} Bd6 {[%emt 0:00:06]} 7. g3 {[%emt 0:02:06]} O-O {[%emt 0:03:11]} 8. Bg2 {[%emt 0:00:52]} Re8+ {[%emt 0:01:44]} 9. Be3 {[%emt 0:00:09]} Bf5 {[%emt 0:02:01]} 10. O-O {[%emt 0:01:21]} Na6 {[%emt 0:01:29]} 11. c3 {[%emt 0:02:52]} Nc7 {[%emt 0:01:11]} 12. Nh4 {[%emt 0:02:41]} Be6 {[%emt 0:02:10]} 13. Re1 {[%emt 0:03:07]} Nd5 {[%emt 0:00:44]} 14. Bd2 {[%emt 0:02:27]} b5 {[%emt 0:00:47]} 15. b3 {[%emt 0:04:36]} Qd7 {[%emt 0:02:43]} 16. a4 {[%emt 0:04:48]} a6 {[%emt 0:01:17]} 17. c4 {[%emt 0:06:27]} Nc7 {[%emt 0:01:45]} 18. axb5 {[%emt 0:01:50]} axb5 {[%emt 0:00:20]} 19. Rxa8 {[%emt 0:02:38]} Rxa8 {[%emt 0:00:35]} 20. Bf1 {[%emt 0:06:35]} Bf8 {[%emt 0:06:32]} 21. Be3 {[%emt 0:04:36]} b4 {[%emt 0:02:27]} 22. Ng2 {[%emt 0:02:24]} Ra3 {[%emt 0:06:35]} 23. Nf4 {[%emt 0:02:45]} Bg4 {[%emt 0:04:48]} 24. Qc2 {[%emt 0:02:33]} g5 {[%emt 0:01:16]} 25. Ne2 {[%emt 0:02:59]} Bf5 {[%emt 0:00:43]} 26. Qd1 {[%emt 0:01:28]} Ne6 {[%emt 0:06:10]} 27. Bg2 {[%emt 0:01:13]} Nc7 {[%emt 0:10:31]} 28. d5 {[%emt 0:03:24]} cxd5 {[%emt 0:01:13]} 29. cxd5 {[%emt 0:00:38]} Nb5 {[%emt 0:02:36]} 30. Bd4 {[%emt 0:02:49]} Qd8 {[%emt 0:05:22]} 31. Nc1 {[%emt 0:06:34]} Bg6 {[%emt 0:02:28]} 32. Bb2 {[%emt 0:00:50]} Ra7 {[%emt 0:01:20]} 33. Qf3 {[%emt 0:01:28]} Bg7 {[%emt 0:01:21]} 34. Qe2 {[%emt 0:00:23]} Nd6 {[%emt 0:01:07]} 35. Qe3 {[%emt 0:01:28]} Qd7 {[%emt 0:01:45]} 36. Qc5 {[%emt 0:02:27]} Rb7 {[%emt 0:01:48]} 37. Qc6 {[%emt 0:02:59]} Qc7 {[%emt 0:01:18]} 38. Ne2 {[%emt 0:04:44]} Bd3 {[%emt 0:02:43]} 39. Nd4 {[%emt 0:00:38]} f5 {[%emt 0:00:44]} 40. Ba1 {[%emt 0:02:46]} Bxd4 {[%emt 0:04:26]} 41. Bxd4 {[%emt 0:01:39]} Bb5 {[%emt 0:00:28]} 42. Qxc7 {[%emt 0:02:23]} Rxc7 {[%emt 0:00:06]} 43. Ra1 {[%emt 0:01:41]} h6 {[%emt 0:00:52]} 44. Ra8+ {[%emt 0:00:27]} Nc8 {[%emt 0:03:37]} 45. h3 {[%emt 0:00:12]} Kh7 {[%emt 0:05:08]} 46. Be5 {[%emt 0:00:54]} Rc5 {[%emt 0:02:32]} 47. Bd4 {[%emt 0:00:44]} Rc7 {[%emt 0:04:49]} 48. d6 {[%emt 0:00:27]} Nxd6 {[%emt 0:02:01]} 49. Rh8+ {[%emt 0:00:09]} Kg6 {[%emt 0:00:10]} 50. Rg8+ {[%emt 0:00:11]} Kh7 {[%emt 0:01:30]} 51. Rg7+ {[%emt 0:00:15]} 1-0

[Event "Bremer Silvester Open-B 2024"]
[Site "Bremen"]
[Date "2024.12.28"]
[Round "4.8"]
[White "Schroeder, Harm"]
[Black "Kandora, Max"]
[Result "0-1"]
[ECO "C42"]
[WhiteElo "1820"]
[BlackElo "1801"]
[Annotator "NA RC"]
[PlyCount "56"]
[EventDate "2024.12.16"]
[EventType "swiss"]
[EventCountry "GER"]
[SourceTitle "playchess.com"]
[Source "ChessBase"]
[SourceQuality "1"]
[TimeControl "5400+30"]

1. e4 {[%emt 0:00:56]} e5 {[%emt 0:00:08]} 2. Nf3 {[%emt 0:00:19]} Nf6 {[%emt 0:00:06]} 3. Nxe5 {[%emt 0:01:34]} d6 {[%emt 0:00:08]} 4. Nf3 {[%emt 0:00:17]} Nxe4 {[%emt 0:00:06]} 5. d4 {[%emt 0:00:18]} d5 {[%emt 0:00:05]} 6. Bd3 {[%emt 0:01:30]} Bf5 {[%emt 0:00:08]} 7. O-O {[%emt 0:00:17]} Bd6 {[%emt 0:00:06]} 8. c4 {[%emt 0:00:38]} c6 {[%emt 0:00:15]} 9. Nc3 {[%emt 0:01:07]} O-O {[%emt 0:00:14]} 10. Qc2 {[%emt 0:01:48]} Re8 {[%emt 0:03:57]} 11. Re1 {[%emt 0:01:00]} Bb4 {[%emt 0:00:14]} 12. a3 {[%emt 0:07:59]} Bxc3 {[%emt 0:02:05]} 13. bxc3 {[%emt 0:02:26]} Nd7 {[%emt 0:05:55]} 14. Bb2 {[%emt 0:07:04]} Bg6 {[%emt 0:13:31]} 15. Nd2 {[%emt 0:30:08]} Ng5 {[%emt 0:15:03]} 16. Bxg6 {[%emt 0:01:02]} hxg6 {[%emt 0:01:10]} 17. cxd5 {[%emt 0:00:20]} cxd5 {[%emt 0:01:02]} 18. f4 {[%emt 0:01:08]} Ne6 {[%emt 0:01:10]} 19. f5 {[%emt 0:01:22]} Nef8 {[%emt 0:03:12]} 20. Nf3 {[%emt 0:01:18]} Qb6 {[%emt 0:01:57]} 21. fxg6 {[%emt 0:01:43]} Nxg6 {[%emt 0:00:33]} 22. Rxe8+ {[%emt 0:04:07]} Rxe8 {[%emt 0:00:07]} 23. Re1 {[%emt 0:00:10]} Rxe1+ {[%emt 0:01:07]} 24. Nxe1 {[%emt 0:00:12]} Qe6 {[%emt 0:00:43]} 25. Qf2 {[%emt 0:00:43]} Nf6 {[%emt 0:00:16]} 26. Nd3 {[%emt 0:02:41]} Ng4 {[%emt 0:01:41]} 27. Nc5 {[%emt 0:03:02]} Nxf2 {[%emt 0:00:16]} 28. Nxe6 {[%emt 0:00:32]} Nd3 {[%emt 0:00:04]} 0-1